fUST/lending_fUST_20251020
["ID","MTS","AMOUNT","RATE_DAILY","PERIOD"]
[391848573,1760912891511,-445.56171974,0.00024063,2]
[391848574,1760912891530,-10000.01,0.00024063,2]
[391848575,1760912891555,-10000.01,0.00024063,2]
[391848576,1760912891607,420.70328632,0.00010618,2]
[391848577,1760912891625,-10000.01,0.00024063,2]
[391848578,1760912891642,-10000.01,0.00024063,2]
[391848579,1760912892872,11535.5675611,0.000125,2]
[391848580,1760912896524,319.07964471,0.0002401,2]
[391848581,1760912896709,-445.61171974,0.00024063,2]
[391848582,1760912896741,-9108.78656052,0.00024063,2]
[391848583,1760912896839,-1000.0,0.00024063,2]
[391848584,1760912896871,-437.82131396,0.00024063,2]
[391848587,1760912911323,687.4535877,0.0001,7]
[391848588,1760912911758,6436.91378438,0.00022,5]
[391848589,1760912911784,10000.01,0.00022,5]
[391848590,1760912911810,10000.01,0.00022,5]
[391848591,1760912911837,69134.04077055,0.00022,5]
[391848592,1760912913520,367.6230288,0.0002,2]
[391848593,1760912913813,43451.09983829,0.00015,2]
[391848594,1760912914282,1374.52036674,0.0002061,2]
[391848596,1760912914747,1555.58536909,0.00024,2]
[391848597,1760912914834,31809.49901276,0.00019,2]
[391848598,1760912914926,-500.01,0.00024071,5]
[391848600,1760912915389,-1875.62262792,0.00024071,2]
[391848601,1760912915425,588.48105727,0.000149,2]
[391848602,1760912915692,1000.0,0.0001,2]
[391848603,1760912916331,4351.55978422,0.00018,2]
[391848604,1760912917396,1212.18366872,0.00023996,2]
[391848605,1760912917841,-10000.01,0.00024071,2]
[391848606,1760912917985,-10000.01,0.00024071,2]
[391848607,1760912918100,-10000.01,0.00024071,2]
[391848608,1760912918129,272.07592974,0.00024,7]
[391848609,1760912918226,-10000.01,0.00024071,2]
[391848610,1760912918347,-10000.01,0.00024071,2]
[391848611,1760912918989,22456.5009835,0.0002,2]
[391848612,1760912919636,213.50294487,0.00016,2]
[391848613,1760912919823,163.92251958,0.00024,2]
[391848614,1760912921598,2348.1961547,0.000215,2]
[391848615,1760912921768,460.58292626,0.00024,2]
[391848616,1760912923921,-177.70375948,0.0002407,2]
[391848617,1760912923953,-194.96490134,0.0002407,2]
[391848618,1760912924008,-9254.67267836,0.00024071,2]
[391848619,1760912924040,-10000.01,0.00024071,2]
[391848620,1760912924199,-10000.01,0.00024071,2]
[391848621,1760912924357,-10000.01,0.00024071,2]
[391848622,1760912924481,-10000.01,0.00024071,2]
[391848623,1760912924601,417.15472785,0.0002401,2]
[391848624,1760912924829,4067.70357668,0.0002,2]
[391848625,1760912942079,5000.0,0.0002401,2]
[391848629,1760912964238,5000.0,0.00024064,2]
[391848632,1760912966977,168.780479,0.00011543,2]
[391848633,1760912967181,168.780479,0.00017315,2]
[391848634,1760912967385,168.780479,0.00023086,2]
[391848635,1760912969765,300.0,0.00024,2]
[391848636,1760912972185,-300.0,0.00024069,2]
[391848637,1760912972220,-500.0,0.0002407,2]
[391848638,1760912972249,-457.84101001,0.0002407,2]
[391848639,1760912972279,-500.0,0.0002407,2]
[391848640,1760912972310,-500.0,0.0002407,2]
[391848641,1760912972412,-271.19057491,0.0002407,2]
[391848642,1760912972446,-500.0,0.0002407,2]
[391848643,1760912972474,-500.0,0.0002407,2]
[391848644,1760912972504,-500.0,0.0002407,2]
[391848645,1760912972534,-500.0,0.0002407,2]
[391848646,1760912972564,-441.94683016,0.0002407,2]
[391848647,1760912972711,-58.05316984,0.0002407,2]
[391848648,1760912972743,-383.56018513,0.0002407,2]
[391848649,1760912972776,-500.0,0.0002407,2]
[391848650,1760912972808,-500.0,0.0002407,2]
[391848651,1760912972839,-337.95042794,0.0002407,2]
[391848652,1760912972869,-515.85928434,0.0002407,2]
[391848653,1760912972902,-204.21671421,0.0002407,2]
[391848654,1760912986898,5000.0,0.0002407,2]
[391848655,1760912987525,-9258.07316984,0.00024071,2]
[391848656,1760912987650,-10000.01,0.00024071,2]
[391848657,1760912987788,-10000.01,0.00024071,2]
[391848658,1760912989958,2042.35242273,0.00021181,2]
[391848659,1760912993277,-10000.01,0.00024071,2]
[391848660,1760912993406,-10000.01,0.00024071,2]
[391848661,1760913002501,2036.4983066,0.0002401,2]
[391848662,1760913009614,178.37,0.00024061,2]
[391848663,1760913010262,5000.0,0.00024064,2]
[391848664,1760913014096,805.76,0.00024061,3]
[391848665,1760913022976,1350.61,0.00021589,2]
[391848666,1760913023439,2701.23,0.00022617,2]
[391848667,1760913023850,4051.84,0.00023645,2]
[391848701,1760913032015,-402.88,0.00024061,3]
[391848703,1760913032025,-300.0,0.0002407,2]
[391848705,1760913032034,-300.0,0.0002407,2]
[391848707,1760913032044,-300.0,0.0002407,2]
[391848709,1760913032054,-300.0,0.0002407,2]
[391848711,1760913032063,-300.0,0.0002407,2]
[391848713,1760913032073,-1200.0,0.0002407,2]
[391848715,1760913032083,-150550.52769588,0.00024071,2]
[391848719,1760913032399,5000.0,0.0002401,2]
[391848756,1760913037904,-3393.632,0.00024071,2]
[391848758,1760913037965,-65667.341828,0.00024071,2]
[391848759,1760913037975,-5000.0,0.00024071,2]
[391848760,1760913037984,-3405.58186867,0.00024073,2]
[391848761,1760913037994,-3268.60311055,0.00024073,2]
[391848762,1760913038003,-1274.33799098,0.000241,2]
[391848763,1760913038012,-1991.15311091,0.000241,2]
[391848764,1760913038022,-594.56771019,0.000241,2]
[391848765,1760913038031,-149.999999,0.00024142,2]
[391848766,1760913038040,-350.197456,0.00024142,2]
[391848767,1760913038050,-5022.84252402,0.00024142,2]
[391848768,1760913038059,-1212.18366871,0.00024217,2]
[391848769,1760913038068,-834.27231173,0.00024228,5]
[391848770,1760913038078,-2922.14040592,0.00024424,2]
[391848771,1760913038087,-1070.22187834,0.00024431,2]
[391848772,1760913038097,-1212.18366871,0.00024438,2]
[391848773,1760913038106,-1212.18366871,0.00024659,2]
[391848774,1760913038115,-172.5,0.00024661,2]
[391848775,1760913038125,-5402.46,0.00024673,2]
[391848776,1760913038134,-160.85954397,0.00024792,2]
[391848777,1760913038143,-41614.04208326,0.000248,3]
[391848778,1760913038153,-2253.37925984,0.000248,2]
[391848779,1760913038163,-281.67240748,0.0002486,2]
[391848780,1760913038172,-201.44,0.0002487,3]
[391848781,1760913038182,-1372.08735912,0.00024878,2]
[391848782,1760913038191,-1212.18366871,0.0002488,2]
[391848783,1760913038200,-438734.409864,0.000249,2]
[391848784,1760913038209,-1372.08735912,0.00024953,2]
[391848785,1760913038218,-506.84733383,0.00024973,2]
[391848786,1760913038229,-500.0,0.00024973,2]
[391848787,1760913038239,-298.67203218,0.00024973,2]
[391848788,1760913038249,-163.5076686,0.00024973,2]
[391848789,1760913038258,-420.4862246,0.00024973,2]
[391848790,1760913038269,-500.0,0.00024973,2]
[391848791,1760913038279,-500.0,0.00024973,2]
[391848792,1760913038288,-502.8242109,0.00024973,2]
[391848793,1760913038298,-316.77836109,0.00024973,2]
[391848794,1760913038309,-500.0,0.00024973,2]
[391848795,1760913038319,-506.58475613,0.00024973,2]
[391848796,1760913038327,-563.34481496,0.0002498,2]
[391848797,1760913038337,-100000.0,0.0002499,2]
[391848798,1760913038346,-452.99999803,0.00025,5]
[391848799,1760913038355,-4207.88218453,0.00025031,2]
[391848800,1760913038366,-3337.08924694,0.00025056,5]
[391848801,1760913038376,-1400.568295,0.00025099,2]
[391848802,1760913038385,-1372.08735912,0.00025223,2]
[391848803,1760913038394,-1902.61667261,0.00025244,2]
[391848804,1760913038404,-195.0,0.00025261,2]
[391848805,1760913038413,-160.662952,0.00025391,2]
[391848806,1760913038423,-643.43817589,0.00025417,2]
[391848807,1760913038432,-1611.52,0.00025431,3]
[391848808,1760913038441,-805.76,0.00025431,3]
[391848809,1760913038451,-281.67240748,0.00025432,2]
[391848810,1760913038460,-5000.0,0.00025515,2]
[391848811,1760913038470,-1000.0,0.00025521,2]
[391848812,1760913038479,-5727.3951956,0.00025639,2]
[391848813,1760913038489,-1372.08735912,0.00025644,2]
[391848814,1760913038498,-6753.07,0.00025701,2]
[391848815,1760913038508,-595.33651232,0.0002579,2]
[391848816,1760913038518,-217.5,0.00025861,2]
[391848817,1760913038528,-563.34481496,0.0002592,2]
[391848818,1760913038538,-583.2682976,0.0002593,2]
[391848819,1760913038548,-15959.808555,0.0002593,2]
[391848820,1760913038558,-77011.2579482,0.0002593,2]
[391848821,1760913038568,-1372.08735912,0.00025959,2]
[391848822,1760913038579,-1447.73589576,0.00026042,2]
[391848823,1760913038588,-2972.83855095,0.00026057,2]
[391848824,1760913038598,-1327.77670819,0.00026068,2]
[391848825,1760913038607,-420.0,0.00026101,2]
[391848826,1760913038619,-180.0,0.00026101,2]
[391848827,1760913038629,-420.0,0.00026101,2]
[391848828,1760913038639,-420.0,0.00026101,2]
[391848829,1760913038650,-420.0,0.00026101,2]
[391848830,1760913038663,-1680.0,0.0002622,2]
[391848831,1760913038674,-402.88,0.0002624,3]
[391848832,1760913038684,-1372.08735912,0.00026288,2]
[391848833,1760913038695,-240.0,0.00026461,2]
[391848834,1760913038706,-169.475,0.00026473,13]
[391848835,1760913038717,-500.0,0.00026528,2]
[391848836,1760913038727,-206.4645969,0.00026528,2]
[391848837,1760913038738,-581.0,0.00026528,2]
[391848838,1760913038748,-151.0,0.00026528,2]
[391848839,1760913038758,-151.0,0.00026528,2]
[391848840,1760913038768,-500.0,0.00026583,2]
[391848841,1760913038777,-581.0,0.00026583,2]
[391848842,1760913038787,-151.0,0.00026583,2]
[391848843,1760913038797,-151.0,0.00026583,2]
[391848844,1760913038807,-181.0801015,0.00026598,2]
[391848845,1760913038817,-250.0,0.00026598,2]
[391848846,1760913038827,-250.0,0.00026598,2]
[391848847,1760913038837,-250.0,0.00026598,2]
[391848848,1760913038847,-250.0,0.00026598,2]
[391848849,1760913038857,-250.0,0.00026598,2]
[391848850,1760913038869,-274.04883221,0.00026598,2]
[391848851,1760913038947,-250.0,0.00026598,2]
[391848852,1760913038957,-250.0,0.00026598,2]
[391848853,1760913038968,-250.0,0.00026598,2]
[391848854,1760913038977,-280.52537335,0.00026598,2]
[391848855,1760913038987,-533.88981491,0.00026598,2]
[391848856,1760913038997,-250.0,0.00026598,2]
[391848857,1760913039006,-250.0,0.00026598,2]
[391848858,1760913039015,-250.0,0.00026598,2]
[391848859,1760913039025,-250.0,0.00026598,2]
[391848860,1760913039034,-250.0,0.00026598,2]
[391848861,1760913039044,-250.0,0.00026598,2]
[391848862,1760913039054,-250.0,0.00026598,2]
[391848863,1760913039064,-250.0,0.00026598,2]
[391848864,1760913039073,-1000.0,0.00026598,2]
[391848865,1760913039083,-1000.0,0.00026598,2]
[391848866,1760913039092,-1000.0,0.00026598,2]
[391848867,1760913039101,-741.8533594,0.00026598,2]
[391848868,1760913039109,-1000.0,0.00026598,2]
[391848869,1760913039120,-1000.0,0.00026598,2]
[391848870,1760913039130,-1000.0,0.00026598,2]
[391848871,1760913039139,-1000.0,0.00026598,2]
[391848872,1760913039149,-1000.0,0.00026598,2]
[391848873,1760913039159,-1000.0,0.00026598,2]
[391848874,1760913039169,-1000.0,0.00026598,2]
[391848875,1760913039178,-1000.0,0.00026598,2]
[391848876,1760913039188,-635.83717446,0.00026598,2]
[391848877,1760913039198,-500.0,0.00026638,2]
[391848878,1760913039207,-581.0,0.00026638,2]
[391848879,1760913039217,-151.0,0.00026638,2]
[391848880,1760913039228,-151.0,0.00026638,2]
[391848881,1760913039239,-1071.60572217,0.00026645,2]
[391848882,1760913039249,-2573.75270357,0.00026667,2]
[391848883,1760913039258,-500.0,0.00026692,2]
[391848884,1760913039270,-581.0,0.00026692,2]
[391848885,1760913039279,-298.89237297,0.00026692,2]
[391848886,1760913039289,-151.0,0.00026692,2]
[391848887,1760913039298,-1372.08735912,0.00026705,2]
[391848888,1760913039310,-8103.69,0.0002673,2]
[391848889,1760913039319,-500.0,0.00026747,2]
[391848890,1760913039328,-581.0,0.00026747,2]
[391848891,1760913039338,-151.0,0.00026747,2]
[391848892,1760913039347,-151.0,0.000268,17]
[391848893,1760913039356,-500.0,0.00026802,2]
[391848894,1760913039367,-581.0,0.00026802,2]
[391848895,1760913039377,-204.64415798,0.00026802,2]
[391848896,1760913039387,-500.0,0.00026857,2]
[391848897,1760913039396,-581.0,0.00026857,2]
[391848898,1760913039406,-500.0,0.00026912,2]
[391848899,1760913039415,-581.0,0.00026912,2]
[391848900,1760913039424,-1372.08735912,0.00026923,2]
[391848901,1760913039434,-500.0,0.00026966,2]
[391848902,1760913039443,-581.0,0.00026966,2]
[391848903,1760913039452,-402.86590842,0.00027,3]
[391848904,1760913039462,-37950.0,0.00027,2]
[391848905,1760913039471,-1292.52,0.00027,2]
[391848906,1760913039481,-151.0,0.00027,7]
[391848907,1760913039490,-151.0,0.00027,7]
[391848908,1760913039499,-151.0,0.00027,7]
[391848909,1760913039508,-151.0,0.00027,7]
[391848910,1760913039518,-151.0,0.00027,7]
[391848911,1760913039528,-151.0,0.00027,7]
[391848912,1760913039537,-151.0,0.00027,7]
[391848913,1760913039547,-500.0,0.00027021,2]
[391848914,1760913039558,-581.0,0.00027021,2]
[391848915,1760913039567,-262.5,0.00027061,2]
[391848916,1760913039576,-176.0,0.00027076,2]
[391848918,1760913039586,-581.0,0.00027076,2]
[391848919,1760913039596,-581.0,0.00027131,2]
[391848921,1760913039605,-553.64373807,0.00027146,2]
[391848922,1760913039615,-1372.08735912,0.00027154,2]
[391848923,1760913039624,-666.0,0.00027168,2]
[391848924,1760913039633,-581.0,0.00027186,2]
[391848925,1760913039643,-159.52815416,0.00027189,7]
[391848926,1760913039652,-581.0,0.0002724,2]
[391848927,1760913039662,-281.67240748,0.00027285,2]
[391848929,1760913039671,-4021.48859933,0.00027292,2]
[391848931,1760913039681,-581.0,0.00027295,2]
[391848932,1760913039690,-581.0,0.0002735,2]
[391848933,1760913039699,-1880.45,0.000274,2]
[391848934,1760913039708,-4102.52,0.000274,2]
[391848935,1760913039718,-581.0,0.00027405,2]
[391848936,1760913039727,-581.0,0.0002746,2]
[391848937,1760913039736,-1905.07683942,0.00027501,2]
[391848938,1760913039746,-1372.08735921,0.00027513,2]
[391848939,1760913039756,-581.0,0.00027514,2]
[391848940,1760913039765,-581.0,0.00027569,2]
[391848941,1760913039775,-581.0,0.00027624,2]
[391848942,1760913039784,-285.0,0.00027661,2]
[391848943,1760913039793,-581.0,0.00027679,2]
[391848945,1760913039802,-574.12855637,0.00027694,2]
[391848946,1760913039812,-581.0,0.00027733,2]
[391848947,1760913039821,-9454.3,0.00027758,2]
[391848948,1760913039830,-590.70967248,0.00027788,2]
[391848949,1760913039839,-1400.568295,0.00027804,2]
[391848950,1760913039849,-5785.15263945,0.00027917,2]
[391848951,1760913039859,-909.815946,0.00027935,30]
[391848952,1760913039869,-909.815946,0.00027935,30]
[391848953,1760913039879,-909.815946,0.00027935,30]
[391848954,1760913039888,-151.0,0.00027935,30]
[391848955,1760913039897,-245.110359,0.00027935,30]
[391848956,1760913039907,-909.815946,0.00027935,30]
[391848957,1760913039916,-210.941372,0.00027935,30]
[391848958,1760913039925,-620.846825,0.00027935,30]
[391848959,1760913039934,-151.0,0.00027935,30]
[391848960,1760913039944,-245.110359,0.00027935,30]
[391848961,1760913039953,-620.846825,0.00027935,30]
[391848962,1760913039962,-245.110359,0.00027935,30]
[391848963,1760913039971,-620.846825,0.00027935,30]
[391848964,1760913039981,-245.110359,0.00027935,30]
[391848965,1760913039990,-620.846825,0.00027935,30]
[391848966,1760913039999,-151.0,0.00027935,30]
[391848967,1760913040008,-151.0,0.00027935,30]
[391848968,1760913040018,-151.0,0.00027935,30]
[391848969,1760913040027,-1819.81567691,0.00027935,5]
[391848970,1760913040097,-1000.0,0.00028,2]
[391848971,1760913040107,-595.37131296,0.00028242,2]
[391848972,1760913040117,-307.5,0.00028261,2]
[391848973,1760913040127,-447.0,0.00028303,2]
[391848974,1760913040137,-587.0,0.00028303,2]
[391848975,1760913040146,-587.0,0.00028303,2]
[391848976,1760913040155,-587.0,0.00028303,2]
[391848977,1760913040165,-250.0,0.0002832,2]
[391848978,1760913040174,-2976.6825616,0.00028356,2]
[391848979,1760913040183,-281.67240748,0.00028539,2]
[391848980,1760913040193,-500.0,0.00028549,10]
[391848981,1760913040202,-500.0,0.00028549,10]
[391848982,1760913040211,-2351.0,0.00028562,2]
[391848983,1760913040223,-10804.92,0.00028786,2]
[391848984,1760913040233,-617.40005154,0.0002879,2]
[391848985,1760913040242,-160.662952,0.00028816,60]
[391848986,1760913040252,-208.0,0.0002885,2]
[391848987,1760913040262,-583.2682976,0.00028907,2]
[391848988,1760913040272,-2105.1088234,0.00028956,2]
[391848989,1760913040281,-171.0,0.00029105,2]
[391848991,1760913040290,-208.0,0.00029148,2]
[391848992,1760913040300,-171.0,0.00029195,2]
[391848994,1760913040310,-171.0,0.0002923,2]
[391848995,1760913040320,-2281.09412763,0.00029245,5]
[391848996,1760913040330,-208.0,0.00029319,7]
[391848997,1760913040339,-640.24385345,0.00029338,2]
[391848998,1760913040348,-208.0,0.00029476,2]
[391848999,1760913040358,-1880.45,0.000295,2]
[391849000,1760913040367,-4102.52,0.000295,2]
[391849001,1760913040376,-1160.75437009,0.00029553,5]
[391849002,1760913040386,-1929.30380057,0.00029553,5]
[391849003,1760913040395,-171.0,0.00029768,2]
[391849004,1760913040404,-12155.53,0.00029814,2]
[391849005,1760913040413,-5000.0,0.00029848,2]
[391849006,1760913040422,-663.93287602,0.00029886,2]
[391849007,1760913040431,-1839.09270026,0.00029923,5]
[391849008,1760913040440,-208.0,0.00029932,2]
[391849009,1760913040449,-171.0,0.00029947,2]
[391849010,1760913040458,-672.734753,0.00029993,30]
[391849011,1760913040467,-672.734753,0.00029993,30]
[391849012,1760913040477,-672.734753,0.00029993,30]
[391849013,1760913040486,-672.734753,0.00029993,30]
[391849014,1760913040495,-203.8205,0.0003,2]
[391849015,1760913040505,-171.0,0.00030083,2]
[391849016,1760913040514,-281.67240748,0.00030127,2]
[391849017,1760913040524,-624.327942,0.00030137,120]
[391849018,1760913040534,-690.43206773,0.00030137,3]
[391849019,1760913040543,-151.0,0.00030137,30]
[391849020,1760913040552,-151.0,0.00030137,30]
[391849021,1760913040561,-151.0,0.00030137,30]
[391849022,1760913040570,-151.0,0.00030137,30]
[391849023,1760913040579,-192.585333,0.00030137,30]
[391849024,1760913040589,-192.585333,0.00030137,30]
[391849025,1760913040598,-192.585333,0.00030137,30]
[391849026,1760913040608,-192.585333,0.00030137,30]
[391849027,1760913040619,-151.0,0.00030137,30]
[391849028,1760913040628,-151.0,0.00030137,30]
[391849029,1760913040638,-770.85104,0.00030137,30]
[391849030,1760913040647,-770.85104,0.00030137,30]
[391849031,1760913040656,-770.85104,0.00030137,30]
[391849032,1760913040666,-770.85104,0.00030137,30]
[391849033,1760913040675,-151.0,0.00030137,30]
[391849034,1760913040684,-151.0,0.00030137,30]
[391849035,1760913040693,-151.0,0.00030137,30]
[391849036,1760913040702,-151.0,0.00030137,30]
[391849037,1760913040711,-151.0,0.00030137,30]
[391849038,1760913040721,-151.0,0.00030137,30]
[391849039,1760913040730,-500.0,0.00030137,2]
[391849040,1760913040739,-500.0,0.00030137,2]
[391849041,1760913040748,-500.0,0.00030137,2]
[391849042,1760913040758,-500.0,0.00030137,2]
[391849043,1760913040767,-500.0,0.00030137,2]
[391849044,1760913040777,-500.0,0.00030137,2]
[391849045,1760913040786,-500.0,0.00030137,2]
[391849046,1760913040795,-500.0,0.00030137,2]
[391849047,1760913040804,-500.0,0.00030137,2]
[391849048,1760913040813,-500.0,0.00030137,2]
[391849049,1760913040822,-500.0,0.00030137,2]
[391849050,1760913040831,-500.0,0.00030137,2]
[391849051,1760913040841,-500.0,0.00030137,2]
[391849052,1760913040850,-500.0,0.00030137,2]
[391849053,1760913040859,-500.0,0.00030137,2]
[391849054,1760913040873,-500.0,0.00030137,2]
[391849055,1760913040882,-500.0,0.00030137,2]
[391849056,1760913040891,-500.0,0.00030137,2]
[391849057,1760913040901,-500.0,0.00030137,2]
[391849058,1760913040910,-500.0,0.00030137,2]
[391849059,1760913040919,-500.0,0.00030137,2]
[391849060,1760913040929,-500.0,0.00030137,2]
[391849061,1760913040938,-500.0,0.00030137,2]
[391849062,1760913040951,-500.0,0.00030137,2]
[391849063,1760913040962,-191.29432843,0.00030137,2]
[391849064,1760913040972,-151.0,0.00030137,15]
[391849065,1760913040981,-151.0,0.00030137,30]
[391849066,1760913040991,-151.0,0.00030137,30]
[391849067,1760913041001,-310.909858,0.00030137,30]
[391849068,1760913041010,-310.909858,0.00030137,30]
[391849069,1760913041019,-151.0,0.00030137,30]
[391849070,1760913041029,-310.909858,0.00030137,30]
[391849071,1760913041038,-151.0,0.00030137,30]
[391849072,1760913041047,-310.909858,0.00030137,30]
[391849073,1760913041057,-151.0,0.00030137,30]
[391849074,1760913041066,-500.0,0.00030137,2]
[391849075,1760913041075,-500.0,0.00030137,2]
[391849076,1760913041084,-500.0,0.00030137,2]
[391849077,1760913041153,-500.0,0.00030137,2]
[391849078,1760913041163,-500.0,0.00030137,2]
[391849079,1760913041172,-500.0,0.00030137,2]
[391849080,1760913041182,-500.0,0.00030137,2]
[391849081,1760913041191,-500.0,0.00030137,2]
[391849082,1760913041200,-500.0,0.00030137,2]
[391849083,1760913041209,-500.0,0.00030137,2]
[391849084,1760913041219,-500.0,0.00030137,2]
[391849085,1760913041229,-500.0,0.00030137,2]
[391849086,1760913041240,-500.0,0.00030137,2]
[391849087,1760913041249,-387.84833612,0.00030137,2]
[391849088,1760913041259,-500.0,0.00030137,2]
[391849089,1760913041269,-500.0,0.00030137,2]
[391849090,1760913041278,-500.0,0.00030137,2]
[391849091,1760913041287,-500.0,0.00030137,2]
[391849092,1760913041296,-500.0,0.00030137,2]
[391849093,1760913041307,-500.0,0.00030137,2]
[391849094,1760913041316,-500.0,0.00030137,2]
[391849095,1760913041325,-500.0,0.00030137,2]
[391849096,1760913041335,-500.0,0.00030137,2]
[391849097,1760913041344,-500.0,0.00030137,2]
[391849098,1760913041353,-500.0,0.00030137,2]
[391849099,1760913041362,-500.0,0.00030137,2]
[391849100,1760913041373,-500.0,0.00030137,2]
[391849101,1760913041382,-500.0,0.00030137,2]
[391849102,1760913041391,-500.0,0.00030137,2]
[391849103,1760913041400,-500.0,0.00030137,2]
[391849104,1760913041410,-500.0,0.00030137,2]
[391849105,1760913041419,-500.0,0.00030137,2]
[391849106,1760913041428,-500.0,0.00030137,2]
[391849107,1760913041437,-400.0,0.00030137,2]
[391849108,1760913041447,-500.0,0.00030137,2]
[391849109,1760913041456,-500.0,0.00030137,2]
[391849110,1760913041465,-500.0,0.00030137,2]
[391849111,1760913041474,-500.0,0.00030137,2]
[391849112,1760913041483,-500.0,0.00030137,2]
[391849113,1760913041492,-500.0,0.00030137,2]
[391849114,1760913041501,-500.0,0.00030137,2]
[391849115,1760913041511,-171.0,0.00030354,2]
[391849116,1760913041520,-171.0,0.00030421,2]
[391849117,1760913041530,-688.49839244,0.00030434,2]
[391849118,1760913041539,-1400.568295,0.00030509,2]
[391849119,1760913041549,-168.0,0.00030524,2]
[391849120,1760913041558,-151.0,0.0003064,30]
[391849121,1760913041568,-151.0,0.0003064,30]
[391849122,1760913041577,-402.86590842,0.0003064,30]
[391849123,1760913041586,-171.0,0.0003065,2]
[391849124,1760913041596,-151.0,0.00030658,30]
[391849125,1760913041605,-151.0,0.00030658,30]
[391849126,1760913041615,-151.0,0.00030658,30]
[391849127,1760913041625,-275.681012,0.00030658,7]
[391849128,1760913041634,-151.0,0.00030658,30]
[391849129,1760913041643,-151.0,0.00030658,30]
[391849130,1760913041653,-261.596986,0.00030658,30]
[391849131,1760913041662,-261.596986,0.00030658,30]
[391849132,1760913041672,-154.651729,0.00030658,30]
[391849133,1760913041681,-261.596986,0.00030658,30]
[391849134,1760913041691,-261.596986,0.00030658,30]
[391849135,1760913041701,-151.0,0.00030658,30]
[391849136,1760913041710,-151.0,0.00030658,2]
[391849137,1760913041719,-151.0,0.00030658,30]
[391849138,1760913041728,-151.0,0.00030658,30]
[391849139,1760913041738,-151.0,0.00030658,30]
[391849140,1760913041748,-151.0,0.00030658,30]
[391849141,1760913041757,-151.0,0.00030658,30]
[391849142,1760913041767,-153.0,0.0003069,2]
[391849143,1760913041777,-823.0,0.0003069,2]
[391849144,1760913041787,-468.0,0.0003069,2]
[391849145,1760913041796,-171.0,0.00030828,2]
[391849146,1760913041805,-13506.14,0.00030842,2]
[391849147,1760913041814,-713.97283296,0.00030982,2]
[391849148,1760913041824,-281.67240748,0.0003099,2]
[391849149,1760913041833,-303.52553925,0.0003099,2]
[391849150,1760913041843,-2198.6017687,0.00031,120]
[391849151,1760913041852,-634.10597762,0.00031,120]
[391849152,1760913041862,-287.62645837,0.00031,120]
[391849153,1760913041872,-316.3734587,0.00031,120]
[391849154,1760913041881,-171.72962963,0.00031,120]
[391849155,1760913041890,-1381.85723993,0.00031,120]
[391849156,1760913041901,-2346.2465942,0.00031,120]
[391849157,1760913041910,-238.495112,0.00031,30]
[391849158,1760913041919,-151.0,0.00031,30]
[391849159,1760913041929,-151.0,0.00031,30]
[391849160,1760913041939,-158.12604,0.00031,30]
[391849161,1760913041948,-151.0,0.00031,30]
[391849162,1760913041958,-151.0,0.00031,30]
[391849163,1760913041968,-171.65406042,0.00031,120]
[391849164,1760913041978,-168.30486896,0.00031,120]
[391849165,1760913041989,-161.17462155,0.00031,120]
[391849166,1760913041999,-205.88724234,0.00031,120]
[391849167,1760913042008,-160.13210646,0.00031,120]
[391849168,1760913042018,-171.0,0.00031094,2]